[Event "Titled Tuesday Blitz May 24 Early 2022"]
[White "Ehlvest, Jaan"]
[Black "Vakhlamov, Igor L."]
[WhiteFideId "4500016"]
[BlackFideId "24126748"]
[WhiteElo "2505"]
[BlackElo "2401"]
[Result "0-1"]
[Round "02"]
[TimeControl "180+1"]
[Date "2022.05.25"]
[WhiteClock "0:00:01"]
[BlackClock "0:00:21"]

1. e4 {[%clk 0:03:00]}  c5 {[%clk 0:02:52]} 2. Nf3 {[%clk 0:02:59]}  Nc6 {[%clk 0:02:52]} 3. d4 {[%clk 0:02:59]}  cxd4 {[%clk 0:02:53]} 4. Nxd4 {[%clk 0:02:59]}  g6 {[%clk 0:02:54]} 5. c4 {[%clk 0:02:58]}  Bg7 {[%clk 0:02:54]} 6. Be3 {[%clk 0:02:58]}  Qb6 {[%clk 0:02:55]} 7. Nb5 {[%clk 0:02:56]}  Qa5+ {[%clk 0:02:55]} 8. N5c3 {[%clk 0:02:49]}  Nf6 {[%clk 0:02:55]} 9. Bd3 {[%clk 0:02:48]}  O-O {[%clk 0:02:50]} 10. O-O {[%clk 0:02:48]}  d6 {[%clk 0:02:51]} 11. f3 {[%clk 0:02:47]}  Be6 {[%clk 0:02:50]} 12. Nd2 {[%clk 0:02:47]}  Rfc8 {[%clk 0:02:50]} 13. Nb3 {[%clk 0:02:37]}  Qd8 {[%clk 0:02:49]} 14. Rc1 {[%clk 0:02:32]}  a5 {[%clk 0:02:41]} 15. Be2 {[%clk 0:02:21]}  a4 {[%clk 0:02:40]} 16. Nd4 {[%clk 0:02:21]}  Nxd4 {[%clk 0:02:40]} 17. Bxd4 {[%clk 0:02:19]}  Nd7 {[%clk 0:02:40]} 18. Bxg7 {[%clk 0:02:18]}  Kxg7 {[%clk 0:02:41]} 19. Nb5 {[%clk 0:02:12]}  Qb6+ {[%clk 0:02:38]} 20. Kh1 {[%clk 0:02:11]}  Ne5 {[%clk 0:02:36]} 21. b3 {[%clk 0:02:10]}  axb3 {[%clk 0:02:36]} 22. axb3 {[%clk 0:02:11]}  Ra2 {[%clk 0:02:35]} 23. f4 {[%clk 0:02:03]}  Nc6 {[%clk 0:02:33]} 24. f5 {[%clk 0:02:00]}  Bd7 {[%clk 0:02:33]} 25. f6+ {[%clk 0:01:58]}  exf6 {[%clk 0:02:32]} 26. Nc3 {[%clk 0:01:53]}  Rb2 {[%clk 0:02:23]} 27. Qxd6 {[%clk 0:01:51]}  Qd4 {[%clk 0:02:16]} 28. Nd5 {[%clk 0:01:31]}  Be6 {[%clk 0:01:16]} 29. Rcd1 {[%clk 0:01:15]}  Qe5 {[%clk 0:01:12]} 30. Nf4 {[%clk 0:01:07]}  Rd8 {[%clk 0:00:49]} 31. Qa3 {[%clk 0:00:49]}  Rxd1 {[%clk 0:00:48]} 32. Bxd1 {[%clk 0:00:49]}  Rd2 {[%clk 0:00:45]} 33. Qc1 {[%clk 0:00:37]}  Qb2 {[%clk 0:00:40]} 34. Qxb2 {[%clk 0:00:29]}  Rxb2 {[%clk 0:00:41]} 35. Nd3 {[%clk 0:00:28]}  Rd2 {[%clk 0:00:40]} 36. Nc5 {[%clk 0:00:28]}  b6 {[%clk 0:00:38]} 37. Na4 {[%clk 0:00:24]}  Ne5 {[%clk 0:00:26]} 38. Nxb6 {[%clk 0:00:23]}  Nd3 {[%clk 0:00:27]} 39. Kg1 {[%clk 0:00:23]}  Rb2 {[%clk 0:00:24]} 40. Nd5 {[%clk 0:00:22]}  Nc5 {[%clk 0:00:23]} 41. Nxf6 {[%clk 0:00:18]}  Nxb3 {[%clk 0:00:23]} 42. Bxb3 {[%clk 0:00:15]}  Rxb3 {[%clk 0:00:24]} 43. c5 {[%clk 0:00:13]}  Rc3 {[%clk 0:00:23]} 44. Ne8+ {[%clk 0:00:11]}  Kf8 {[%clk 0:00:23]} 45. Nc7 {[%clk 0:00:11]}  Ke7 {[%clk 0:00:24]} 46. Nxe6 {[%clk 0:00:10]}  Kxe6 {[%clk 0:00:24]} 47. Kf2 {[%clk 0:00:08]}  Rxc5 {[%clk 0:00:25]} 48. Ra1 {[%clk 0:00:08]}  Rc2+ {[%clk 0:00:24]} 49. Kf3 {[%clk 0:00:08]}  Rc3+ {[%clk 0:00:24]} 50. Kf4 {[%clk 0:00:07]}  h6 {[%clk 0:00:21]} 51. Ra6+ {[%clk 0:00:07]}  Ke7 {[%clk 0:00:22]} 52. Ra7+ {[%clk 0:00:07]}  Kf6 {[%clk 0:00:22]} 53. Ra6+ {[%clk 0:00:07]}  Kg7 {[%clk 0:00:22]} 54. g3 {[%clk 0:00:07]}  g5+ {[%clk 0:00:21]} 55. Kg4 {[%clk 0:00:05]}  Re3 {[%clk 0:00:21]} 56. Ra4 {[%clk 0:00:03]}  Kg6 {[%clk 0:00:21]} 57. Ra6+ {[%clk 0:00:01]}  f6 {[%clk 0:00:21]} 0-1


[Site "https://www.chess.com"]

[Event "Titled Tuesday Blitz May 24 Early 2022"]
[White "Eynullayev, Atilla"]
[Black "Yuan, Qingyu"]
[WhiteFideId "13413570"]
[BlackFideId "8609772"]
[WhiteElo "1936"]
[BlackElo "2359"]
[Result "0-1"]
[Round "02"]
[TimeControl "180+1"]
[Date "2022.05.24"]
[WhiteClock "0:01:50"]
[BlackClock "0:02:27"]

1. e4 {[%clk 0:03:00]}  c6 {[%clk 0:02:56]} 2. d4 {[%clk 0:03:00]}  d5 {[%clk 0:02:56]} 3. e5 {[%clk 0:03:00]}  c5 {[%clk 0:02:56]} 4. dxc5 {[%clk 0:03:00]}  e6 {[%clk 0:02:56]} 5. a3 {[%clk 0:03:01]}  Bxc5 {[%clk 0:02:57]} 6. Nf3 {[%clk 0:03:01]}  f6 {[%clk 0:02:56]} 7. b4 {[%clk 0:03:00]}  Be7 {[%clk 0:02:56]} 8. Bb2 {[%clk 0:03:00]}  a5 {[%clk 0:02:55]} 9. b5 {[%clk 0:03:00]}  Nd7 {[%clk 0:02:55]} 10. Bd3 {[%clk 0:02:55]}  Nh6 {[%clk 0:02:55]} 11. O-O {[%clk 0:02:52]}  Nf7 {[%clk 0:02:56]} 12. exf6 {[%clk 0:02:48]}  Bxf6 {[%clk 0:02:57]} 13. Bxf6 {[%clk 0:02:46]}  Qxf6 {[%clk 0:02:58]} 14. c4 {[%clk 0:02:45]}  Qxa1 {[%clk 0:02:57]} 15. cxd5 {[%clk 0:02:44]}  Nc5 {[%clk 0:02:43]} 16. Qc2 {[%clk 0:02:08]}  Nxd3 {[%clk 0:02:37]} 17. Nc3 {[%clk 0:01:50]}  Qxa3 {[%clk 0:02:26]} 18. Qxd3 {[%clk 0:01:50]}  O-O {[%clk 0:02:27]} 0-1


[Site "https://www.chess.com"]

[Event "Titled Tuesday Blitz May 24 Early 2022"]
[White "Fromm, Marius"]
[Black "Soumya, Swaminathan"]
[WhiteFideId "12993190"]
[BlackFideId "5016193"]
[WhiteElo "2494"]
[BlackElo "2115"]
[Result "1-0"]
[Round "02"]
[TimeControl "180+1"]
[Date "2022.05.25"]
[WhiteClock "0:01:13"]
[BlackClock "0:00:01"]

1. e4 {[%clk 0:03:00]}  c5 {[%clk 0:02:59]} 2. Nf3 {[%clk 0:03:01]}  Nc6 {[%clk 0:02:59]} 3. Bb5 {[%clk 0:03:01]}  g6 {[%clk 0:02:58]} 4. Bxc6 {[%clk 0:03:01]}  dxc6 {[%clk 0:02:50]} 5. d3 {[%clk 0:03:01]}  Bg7 {[%clk 0:02:24]} 6. h3 {[%clk 0:03:01]}  Nf6 {[%clk 0:02:23]} 7. Nc3 {[%clk 0:03:00]}  Nd7 {[%clk 0:02:12]} 8. Be3 {[%clk 0:03:00]}  e5 {[%clk 0:02:10]} 9. Qd2 {[%clk 0:03:00]}  h6 {[%clk 0:02:10]} 10. O-O {[%clk 0:02:58]}  b6 {[%clk 0:02:09]} 11. Nh2 {[%clk 0:02:56]}  Nf8 {[%clk 0:02:08]} 12. f4 {[%clk 0:02:56]}  exf4 {[%clk 0:02:08]} 13. Bxf4 {[%clk 0:02:52]}  Ne6 {[%clk 0:02:07]} 14. Be3 {[%clk 0:02:48]}  Nd4 {[%clk 0:02:01]} 15. Nd1 {[%clk 0:02:34]}  Be6 {[%clk 0:01:42]} 16. c3 {[%clk 0:02:34]}  Nb5 {[%clk 0:01:40]} 17. Nf2 {[%clk 0:02:33]}  Qd7 {[%clk 0:00:50]} 18. a4 {[%clk 0:02:32]}  Nd6 {[%clk 0:00:49]} 19. a5 {[%clk 0:02:32]}  Rb8 {[%clk 0:00:29]} 20. axb6 {[%clk 0:02:31]}  axb6 {[%clk 0:00:29]} 21. Nfg4 {[%clk 0:02:26]}  f5 {[%clk 0:00:24]} 22. Nxh6 {[%clk 0:02:15]}  Nxe4 {[%clk 0:00:18]} 23. dxe4 {[%clk 0:02:13]}  Qxd2 {[%clk 0:00:17]} 24. Bxd2 {[%clk 0:02:14]}  Bxh6 {[%clk 0:00:18]} 25. Bxh6 {[%clk 0:02:14]}  Rxh6 {[%clk 0:00:18]} 26. exf5 {[%clk 0:02:11]}  gxf5 {[%clk 0:00:14]} 27. Ra7 {[%clk 0:02:10]}  Rd8 {[%clk 0:00:11]} 28. Rb7 {[%clk 0:02:00]}  b5 {[%clk 0:00:10]} 29. Rc7 {[%clk 0:01:57]}  Rg6 {[%clk 0:00:06]} 30. Nf3 {[%clk 0:01:51]}  Bd5 {[%clk 0:00:03]} 31. Nh4 {[%clk 0:01:49]}  Rg3 {[%clk 0:00:01]} 32. Rxf5 {[%clk 0:01:47]}  Rd7 {[%clk 0:00:01]} 33. Rc8+ {[%clk 0:01:31]}  Ke7 {[%clk 0:00:01]} 34. Re5+ {[%clk 0:01:27]}  Kf6 {[%clk 0:00:01]} 35. Re2 {[%clk 0:01:15]}  Rdg7 {[%clk 0:00:01]} 36. Rf8+ {[%clk 0:01:13]} 1-0


[Site "https://www.chess.com"]

[Event "Titled Tuesday Blitz May 24 Early 2022"]
[White "Gabrielian, Artur"]
[Black "Dmitrenko, Viktor"]
[WhiteFideId "4131002"]
[BlackFideId "14110270"]
[WhiteElo "2440"]
[BlackElo "2218"]
[Result "1/2-1/2"]
[Round "02"]
[TimeControl "180+1"]
[Date "2022.05.25"]
[WhiteClock "0:00:09"]
[BlackClock "0:00:13"]

1. e4 {[%clk 0:03:00]}  c6 {[%clk 0:03:00]} 2. d4 {[%clk 0:02:46]}  d5 {[%clk 0:03:01]} 3. e5 {[%clk 0:02:44]}  Bf5 {[%clk 0:02:58]} 4. h4 {[%clk 0:02:44]}  Qb6 {[%clk 0:02:47]} 5. g4 {[%clk 0:02:39]}  Bd7 {[%clk 0:02:43]} 6. h5 {[%clk 0:02:39]}  h6 {[%clk 0:02:28]} 7. f4 {[%clk 0:02:34]}  e6 {[%clk 0:02:22]} 8. Nf3 {[%clk 0:02:34]}  c5 {[%clk 0:02:18]} 9. c3 {[%clk 0:02:31]}  Bb5 {[%clk 0:02:11]} 10. Bxb5+ {[%clk 0:02:26]}  Qxb5 {[%clk 0:02:09]} 11. a4 {[%clk 0:02:23]}  Qa6 {[%clk 0:02:02]} 12. Na3 {[%clk 0:02:21]}  Nd7 {[%clk 0:01:46]} 13. Nb5 {[%clk 0:02:19]}  Qc6 {[%clk 0:01:38]} 14. O-O {[%clk 0:02:17]}  a6 {[%clk 0:01:31]} 15. Na3 {[%clk 0:02:08]}  Ne7 {[%clk 0:01:31]} 16. Be3 {[%clk 0:02:06]}  Rc8 {[%clk 0:01:22]} 17. b4 {[%clk 0:02:03]}  cxb4 {[%clk 0:01:16]} 18. cxb4 {[%clk 0:02:02]}  Qc3 {[%clk 0:01:17]} 19. Bd2 {[%clk 0:01:20]}  Qd3 {[%clk 0:01:15]} 20. Re1 {[%clk 0:01:16]}  Qh7 {[%clk 0:01:12]} 21. b5 {[%clk 0:01:13]}  g6 {[%clk 0:01:00]} 22. hxg6 {[%clk 0:01:10]}  Qxg6 {[%clk 0:00:57]} 23. Nh4 {[%clk 0:01:04]}  Qd3 {[%clk 0:00:49]} 24. Be3 {[%clk 0:00:30]}  Qxd1 {[%clk 0:00:48]} 25. Rexd1 {[%clk 0:00:30]}  Rg8 {[%clk 0:00:49]} 26. g5 {[%clk 0:00:30]}  hxg5 {[%clk 0:00:47]} 27. fxg5 {[%clk 0:00:30]}  Nb6 {[%clk 0:00:42]} 28. bxa6 {[%clk 0:00:27]}  bxa6 {[%clk 0:00:41]} 29. Rab1 {[%clk 0:00:25]}  Nxa4 {[%clk 0:00:40]} 30. Rb7 {[%clk 0:00:24]}  Nc6 {[%clk 0:00:33]} 31. Nc2 {[%clk 0:00:14]}  Be7 {[%clk 0:00:32]} 32. Nf3 {[%clk 0:00:13]}  Nc3 {[%clk 0:00:32]} 33. Ra1 {[%clk 0:00:12]}  Ne4 {[%clk 0:00:30]} 34. Rxa6 {[%clk 0:00:11]}  Bxg5 {[%clk 0:00:24]} 35. Nxg5 {[%clk 0:00:11]}  Nxg5 {[%clk 0:00:24]} 36. Kf2 {[%clk 0:00:11]}  Ne4+ {[%clk 0:00:23]} 37. Kf1 {[%clk 0:00:12]}  Nd8 {[%clk 0:00:19]} 38. Rb2 {[%clk 0:00:11]}  Rg3 {[%clk 0:00:17]} 39. Ke2 {[%clk 0:00:08]}  Rg2+ {[%clk 0:00:17]} 40. Kd1 {[%clk 0:00:08]}  Nc3+ {[%clk 0:00:15]} 41. Ke1 {[%clk 0:00:08]}  Ne4 {[%clk 0:00:13]} 42. Kd1 {[%clk 0:00:08]}  Nc3+ {[%clk 0:00:13]} 43. Ke1 {[%clk 0:00:09]}  Ne4 {[%clk 0:00:13]} 44. Kd1 {[%clk 0:00:09]} 1/2-1/2


[Site "https://www.chess.com"]

[Event "Titled Tuesday Blitz May 24 Early 2022"]
[White "Galiana Fernandez, Adrian"]
[Black "Ingebretsen, Jens E"]
[WhiteFideId "32010150"]
[BlackFideId "1522965"]
[WhiteElo "2133"]
[BlackElo "2036"]
[Result "0-1"]
[Round "02"]
[TimeControl "180+1"]
[Date "2022.05.25"]
[WhiteClock "0:00:04"]
[BlackClock "0:00:22"]

1. d4 {[%clk 0:03:00]}  d5 {[%clk 0:02:59]} 2. c4 {[%clk 0:03:00]}  c6 {[%clk 0:03:00]} 3. Nf3 {[%clk 0:03:00]}  Nf6 {[%clk 0:03:00]} 4. e3 {[%clk 0:03:00]}  Bg4 {[%clk 0:02:58]} 5. h3 {[%clk 0:02:59]}  Bxf3 {[%clk 0:02:50]} 6. Qxf3 {[%clk 0:03:00]}  e6 {[%clk 0:02:51]} 7. Nc3 {[%clk 0:02:58]}  Nbd7 {[%clk 0:02:51]} 8. Bd3 {[%clk 0:02:53]}  Bd6 {[%clk 0:02:51]} 9. O-O {[%clk 0:02:52]}  O-O {[%clk 0:02:44]} 10. b3 {[%clk 0:02:38]}  Re8 {[%clk 0:02:37]} 11. Bb2 {[%clk 0:02:37]}  e5 {[%clk 0:02:34]} 12. cxd5 {[%clk 0:02:37]}  cxd5 {[%clk 0:02:31]} 13. dxe5 {[%clk 0:02:31]}  Nxe5 {[%clk 0:02:31]} 14. Qd1 {[%clk 0:02:31]}  Rc8 {[%clk 0:02:27]} 15. Nb5 {[%clk 0:01:53]}  Bb8 {[%clk 0:02:02]} 16. Be2 {[%clk 0:01:48]}  a6 {[%clk 0:01:57]} 17. Nd4 {[%clk 0:01:47]}  Qd6 {[%clk 0:01:56]} 18. g3 {[%clk 0:01:23]}  Ne4 {[%clk 0:01:40]} 19. Kg2 {[%clk 0:01:22]}  Qg6 {[%clk 0:01:26]} 20. Rc1 {[%clk 0:01:17]}  Rxc1 {[%clk 0:01:25]} 21. Qxc1 {[%clk 0:01:14]}  Nxg3 {[%clk 0:01:03]} 22. fxg3 {[%clk 0:01:13]}  Nd3 {[%clk 0:01:03]} 23. Nf5 {[%clk 0:00:36]}  Nxc1 {[%clk 0:00:59]} 24. Bxc1 {[%clk 0:00:33]}  d4 {[%clk 0:00:50]} 25. Bb2 {[%clk 0:00:32]}  Re5 {[%clk 0:00:39]} 26. g4 {[%clk 0:00:30]}  Ba7 {[%clk 0:00:24]} 27. Bc4 {[%clk 0:00:25]}  Qc6+ {[%clk 0:00:24]} 28. Kg3 {[%clk 0:00:20]}  Bb8 {[%clk 0:00:22]} 29. Bxf7+ {[%clk 0:00:04]}  Kxf7 {[%clk 0:00:22]} 30. Nxd4+ {[%clk 0:00:04]}  Rf5+ {[%clk 0:00:22]} 0-1


[Site "https://www.chess.com"]

[Event "Titled Tuesday Blitz May 24 Early 2022"]
[White "Gallego Alcaraz, Andres Felipe"]
[Black "Kollars, Dmitrij"]
[WhiteFideId "4402669"]
[BlackFideId "12909572"]
[WhiteElo "2340"]
[BlackElo "2584"]
[Result "0-1"]
[Round "02"]
[TimeControl "180+1"]
[Date "2022.05.24"]
[WhiteClock "0:00:09"]
[BlackClock "0:00:18"]

1. d4 {[%clk 0:02:56]}  d5 {[%clk 0:02:58]} 2. Nf3 {[%clk 0:02:55]}  Nf6 {[%clk 0:02:58]} 3. c4 {[%clk 0:02:56]}  e6 {[%clk 0:02:52]} 4. g3 {[%clk 0:02:56]}  dxc4 {[%clk 0:02:46]} 5. Bg2 {[%clk 0:02:56]}  a6 {[%clk 0:02:46]} 6. O-O {[%clk 0:02:51]}  Nc6 {[%clk 0:02:46]} 7. Qc2 {[%clk 0:02:51]}  b5 {[%clk 0:02:32]} 8. Ne5 {[%clk 0:02:46]}  Nxe5 {[%clk 0:02:32]} 9. Bxa8 {[%clk 0:02:38]}  Qxd4 {[%clk 0:02:31]} 10. Rd1 {[%clk 0:02:28]}  Qg4 {[%clk 0:02:25]} 11. Bf4 {[%clk 0:02:24]}  Bd6 {[%clk 0:02:22]} 12. a4 {[%clk 0:02:00]}  O-O {[%clk 0:02:21]} 13. axb5 {[%clk 0:01:59]}  axb5 {[%clk 0:02:22]} 14. Nc3 {[%clk 0:01:57]}  Qh5 {[%clk 0:02:16]} 15. Bg2 {[%clk 0:01:49]}  Bd7 {[%clk 0:01:59]} 16. Ra7 {[%clk 0:01:31]}  Rb8 {[%clk 0:01:53]} 17. Ne4 {[%clk 0:01:24]}  Nxe4 {[%clk 0:01:50]} 18. Qxe4 {[%clk 0:01:21]}  Bc6 {[%clk 0:01:45]} 19. Qc2 {[%clk 0:00:46]}  Ng4 {[%clk 0:01:06]} 20. h3 {[%clk 0:00:45]}  Nxf2 {[%clk 0:01:06]} 21. Rxd6 {[%clk 0:00:32]}  Nxh3+ {[%clk 0:00:36]} 22. Bxh3 {[%clk 0:00:29]}  cxd6 {[%clk 0:00:26]} 23. Kh2 {[%clk 0:00:20]}  Qc5 {[%clk 0:00:26]} 24. Bg2 {[%clk 0:00:09]}  Qf2 {[%clk 0:00:18]} 0-1


[Site "https://www.chess.com"]

[Event "Titled Tuesday Blitz May 24 Early 2022"]
[White "Garriga Cazorla, Pere"]
[Black "Kholin, Aleksandr"]
[WhiteFideId "32011601"]
[BlackFideId "14179385"]
[WhiteElo "2433"]
[BlackElo "2484"]
[Result "1-0"]
[Round "02"]
[TimeControl "180+1"]
[Date "2022.05.25"]
[WhiteClock "0:00:59"]
[BlackClock "0:00:13"]

1. d4 {[%clk 0:03:00]}  d5 {[%clk 0:02:58]} 2. c4 {[%clk 0:02:58]}  e6 {[%clk 0:02:58]} 3. Nc3 {[%clk 0:02:54]}  Be7 {[%clk 0:02:58]} 4. Nf3 {[%clk 0:02:51]}  Nf6 {[%clk 0:02:58]} 5. Bf4 {[%clk 0:02:50]}  O-O {[%clk 0:02:57]} 6. e3 {[%clk 0:02:51]}  c5 {[%clk 0:02:57]} 7. dxc5 {[%clk 0:02:49]}  Bxc5 {[%clk 0:02:58]} 8. a3 {[%clk 0:02:49]}  Nc6 {[%clk 0:02:57]} 9. cxd5 {[%clk 0:02:48]}  Nxd5 {[%clk 0:02:55]} 10. Nxd5 {[%clk 0:02:48]}  exd5 {[%clk 0:02:56]} 11. Rc1 {[%clk 0:02:46]}  Bb6 {[%clk 0:02:56]} 12. Bd3 {[%clk 0:02:46]}  d4 {[%clk 0:02:55]} 13. e4 {[%clk 0:02:46]}  Bg4 {[%clk 0:02:50]} 14. O-O {[%clk 0:02:46]}  Re8 {[%clk 0:02:50]} 15. Re1 {[%clk 0:02:44]}  Ne5 {[%clk 0:02:47]} 16. Bxe5 {[%clk 0:02:40]}  Rxe5 {[%clk 0:02:48]} 17. h3 {[%clk 0:02:41]}  Bxf3 {[%clk 0:02:47]} 18. Qxf3 {[%clk 0:02:42]}  Rc8 {[%clk 0:02:23]} 19. Qg3 {[%clk 0:02:39]}  Rec5 {[%clk 0:02:21]} 20. Rxc5 {[%clk 0:02:37]}  Rxc5 {[%clk 0:02:21]} 21. e5 {[%clk 0:02:33]}  g6 {[%clk 0:02:15]} 22. f4 {[%clk 0:02:26]}  Qc7 {[%clk 0:02:12]} 23. Kh2 {[%clk 0:02:21]}  Rc1 {[%clk 0:02:11]} 24. Re2 {[%clk 0:02:21]}  Rd1 {[%clk 0:02:01]} 25. e6 {[%clk 0:02:13]}  fxe6 {[%clk 0:01:29]} 26. Bxg6 {[%clk 0:01:10]}  hxg6 {[%clk 0:00:50]} 27. Qxg6+ {[%clk 0:01:09]}  Kh8 {[%clk 0:00:43]} 28. Qh6+ {[%clk 0:01:09]}  Qh7 {[%clk 0:00:41]} 29. Qxe6 {[%clk 0:01:10]}  Bc5 {[%clk 0:00:20]} 30. Qe5+ {[%clk 0:01:08]}  Qg7 {[%clk 0:00:19]} 31. Qh5+ {[%clk 0:01:06]}  Kg8 {[%clk 0:00:17]} 32. Qxc5 {[%clk 0:01:02]}  Rd3 {[%clk 0:00:13]} 33. Re8+ {[%clk 0:00:59]}  Kh7 {[%clk 0:00:13]} 34. Qh5+ {[%clk 0:00:59]} 1-0


[Site "https://www.chess.com"]

[Event "Titled Tuesday Blitz May 24 Early 2022"]
[White "Golizadeh, Asghar"]
[Black "Zaksaite, Salomeja"]
[WhiteFideId "12505269"]
[BlackFideId "12801496"]
[WhiteElo "2403"]
[BlackElo "1953"]
[Result "1-0"]
[Round "02"]
[TimeControl "180+1"]
[Date "2022.05.25"]
[WhiteClock "0:01:28"]
[BlackClock "0:00:01"]

1. e4 {[%clk 0:03:00]}  c5 {[%clk 0:02:57]} 2. Nc3 {[%clk 0:03:00]}  e6 {[%clk 0:02:56]} 3. Nge2 {[%clk 0:02:57]}  Nc6 {[%clk 0:02:54]} 4. g3 {[%clk 0:02:57]}  d5 {[%clk 0:02:54]} 5. exd5 {[%clk 0:02:58]}  exd5 {[%clk 0:02:54]} 6. d4 {[%clk 0:02:59]}  cxd4 {[%clk 0:02:49]} 7. Nxd4 {[%clk 0:02:58]}  Nf6 {[%clk 0:02:38]} 8. Bg2 {[%clk 0:02:55]}  Bc5 {[%clk 0:02:38]} 9. Be3 {[%clk 0:02:49]}  Nxd4 {[%clk 0:02:18]} 10. Bxd4 {[%clk 0:02:48]}  Qe7+ {[%clk 0:02:18]} 11. Ne2 {[%clk 0:02:48]}  Bg4 {[%clk 0:02:07]} 12. Bxc5 {[%clk 0:02:45]}  Qxc5 {[%clk 0:02:05]} 13. O-O {[%clk 0:02:45]}  O-O {[%clk 0:02:01]} 14. h3 {[%clk 0:02:40]}  Bf5 {[%clk 0:01:45]} 15. c3 {[%clk 0:02:38]}  Be4 {[%clk 0:01:40]} 16. Qd4 {[%clk 0:02:38]}  Rac8 {[%clk 0:01:35]} 17. Qxc5 {[%clk 0:02:07]}  Rxc5 {[%clk 0:01:35]} 18. Nd4 {[%clk 0:02:08]}  a5 {[%clk 0:01:09]} 19. a4 {[%clk 0:01:51]}  Rfc8 {[%clk 0:01:04]} 20. Nb3 {[%clk 0:01:52]}  R5c7 {[%clk 0:00:24]} 21. Nxa5 {[%clk 0:01:50]}  Ra8 {[%clk 0:00:21]} 22. Nb3 {[%clk 0:01:49]}  Bc2 {[%clk 0:00:19]} 23. Nd4 {[%clk 0:01:49]}  Be4 {[%clk 0:00:10]} 24. Rfd1 {[%clk 0:01:44]}  Kf8 {[%clk 0:00:10]} 25. Nb5 {[%clk 0:01:40]}  Rc5 {[%clk 0:00:09]} 26. Nd6 {[%clk 0:01:38]}  Bxg2 {[%clk 0:00:08]} 27. Kxg2 {[%clk 0:01:37]}  Rb8 {[%clk 0:00:07]} 28. Rd4 {[%clk 0:01:31]}  Ke7 {[%clk 0:00:06]} 29. Nf5+ {[%clk 0:01:31]}  Kf8 {[%clk 0:00:06]} 30. Rad1 {[%clk 0:01:28]}  b6 {[%clk 0:00:02]} 31. Ne3 {[%clk 0:01:28]}  Rd8 {[%clk 0:00:01]} 32. c4 {[%clk 0:01:28]} 1-0


[Site "https://www.chess.com"]

[Event "Titled Tuesday Blitz May 24 Early 2022"]
[White "Gschnitzer, Adrian"]
[Black "Goltsev, Dmitry"]
[WhiteFideId "1270337"]
[BlackFideId "24176710"]
[WhiteElo "2294"]
[BlackElo "2258"]
[Result "0-1"]
[Round "02"]
[TimeControl "180+1"]
[Date "2022.05.25"]
[WhiteClock "0:00:20"]
[BlackClock "0:01:16"]

1. e4 {[%clk 0:03:00]}  e6 {[%clk 0:02:54]} 2. d4 {[%clk 0:03:00]}  d5 {[%clk 0:02:55]} 3. Nd2 {[%clk 0:03:01]}  c5 {[%clk 0:02:55]} 4. Ngf3 {[%clk 0:03:01]}  Nf6 {[%clk 0:02:55]} 5. e5 {[%clk 0:02:58]}  Ne4 {[%clk 0:02:54]} 6. Nxe4 {[%clk 0:02:57]}  dxe4 {[%clk 0:02:54]} 7. Bc4 {[%clk 0:02:58]}  exf3 {[%clk 0:02:54]} 8. Qxf3 {[%clk 0:02:55]}  cxd4 {[%clk 0:02:53]} 9. O-O {[%clk 0:02:54]}  Nc6 {[%clk 0:02:53]} 10. Bf4 {[%clk 0:02:53]}  Bd7 {[%clk 0:02:51]} 11. c3 {[%clk 0:02:53]}  dxc3 {[%clk 0:02:48]} 12. Rfd1 {[%clk 0:02:51]}  cxb2 {[%clk 0:02:48]} 13. Rab1 {[%clk 0:02:52]}  Bc5 {[%clk 0:02:44]} 14. Rxb2 {[%clk 0:02:51]}  Bb6 {[%clk 0:02:44]} 15. Rbd2 {[%clk 0:02:50]}  Nd4 {[%clk 0:02:22]} 16. Rxd4 {[%clk 0:02:26]}  Bxd4 {[%clk 0:02:23]} 17. Rxd4 {[%clk 0:02:26]}  Qb6 {[%clk 0:02:10]} 18. Rxd7 {[%clk 0:02:05]}  Kxd7 {[%clk 0:02:08]} 19. Qd3+ {[%clk 0:02:05]}  Kc7 {[%clk 0:02:04]} 20. Be3 {[%clk 0:02:01]}  Qc6 {[%clk 0:02:03]} 21. Bb5 {[%clk 0:01:50]}  Qd5 {[%clk 0:02:02]} 22. Qc3+ {[%clk 0:01:43]}  Kb8 {[%clk 0:02:01]} 23. Ba4 {[%clk 0:01:32]}  Qxa2 {[%clk 0:01:50]} 24. Bb5 {[%clk 0:01:32]}  Rd8 {[%clk 0:01:44]} 25. Bc5 {[%clk 0:01:14]}  Qb1+ {[%clk 0:01:43]} 26. Bf1 {[%clk 0:01:13]}  a6 {[%clk 0:01:36]} 27. Bd6+ {[%clk 0:00:41]}  Ka7 {[%clk 0:01:31]} 28. Qc5+ {[%clk 0:00:32]}  Qb6 {[%clk 0:01:29]} 29. Qa3 {[%clk 0:00:28]}  Rac8 {[%clk 0:01:29]} 30. g3 {[%clk 0:00:26]}  Rc2 {[%clk 0:01:23]} 31. Qf3 {[%clk 0:00:26]}  Rxd6 {[%clk 0:01:18]} 32. exd6 {[%clk 0:00:26]}  Qxd6 {[%clk 0:01:19]} 33. Qxf7 {[%clk 0:00:26]}  Qc5 {[%clk 0:01:18]} 34. h4 {[%clk 0:00:26]}  a5 {[%clk 0:01:18]} 35. Bg2 {[%clk 0:00:25]}  Qb6 {[%clk 0:01:16]} 36. Qxg7 {[%clk 0:00:21]}  Qxf2+ {[%clk 0:01:15]} 37. Kh1 {[%clk 0:00:20]}  Qxg2# {[%clk 0:01:16]} 0-1


[Site "https://www.chess.com"]

[Event "Titled Tuesday Blitz May 24 Early 2022"]
[White "Gulatz, Maurice"]
[Black "Wagner, Dennis"]
[WhiteFideId "24642746"]
[BlackFideId "24650684"]
[WhiteElo "2150"]
[BlackElo "2355"]
[Result "0-1"]
[Round "02"]
[TimeControl "180+1"]
[Date "2022.05.25"]
[WhiteClock "0:00:47"]
[BlackClock "0:00:33"]

1. d4 {[%clk 0:03:00]}  Nf6 {[%clk 0:02:58]} 2. c4 {[%clk 0:02:51]}  e6 {[%clk 0:02:57]} 3. Nf3 {[%clk 0:02:51]}  d5 {[%clk 0:02:57]} 4. g3 {[%clk 0:02:50]}  Bb4+ {[%clk 0:02:53]} 5. Nbd2 {[%clk 0:02:48]}  dxc4 {[%clk 0:02:48]} 6. Bg2 {[%clk 0:02:46]}  b5 {[%clk 0:02:47]} 7. O-O {[%clk 0:02:44]}  a5 {[%clk 0:02:47]} 8. a4 {[%clk 0:02:40]}  c6 {[%clk 0:02:47]} 9. Ne5 {[%clk 0:02:27]}  Nd5 {[%clk 0:02:32]} 10. e4 {[%clk 0:02:13]}  Nf6 {[%clk 0:02:25]} 11. Nb1 {[%clk 0:01:58]}  O-O {[%clk 0:02:20]} 12. Nc3 {[%clk 0:01:52]}  Ba6 {[%clk 0:02:15]} 13. Re1 {[%clk 0:01:49]}  Qb6 {[%clk 0:02:01]} 14. Be3 {[%clk 0:01:45]}  Rd8 {[%clk 0:02:01]} 15. Qc2 {[%clk 0:01:41]}  Qb7 {[%clk 0:01:40]} 16. Rad1 {[%clk 0:01:39]}  Nbd7 {[%clk 0:01:38]} 17. Nxd7 {[%clk 0:01:30]}  Rxd7 {[%clk 0:01:36]} 18. Bg5 {[%clk 0:01:24]}  Qb6 {[%clk 0:01:17]} 19. Bxf6 {[%clk 0:01:07]}  gxf6 {[%clk 0:01:18]} 20. d5 {[%clk 0:01:07]}  Rad8 {[%clk 0:01:02]} 21. dxe6 {[%clk 0:01:01]}  fxe6 {[%clk 0:01:00]} 22. Bh3 {[%clk 0:01:01]}  Kf7 {[%clk 0:00:36]} 23. e5 {[%clk 0:00:53]}  f5 {[%clk 0:00:35]} 24. Bxf5 {[%clk 0:00:47]}  Rxd1 {[%clk 0:00:34]} 25. Qc1 {[%clk 0:00:47]}  Rxc1 {[%clk 0:00:33]} 0-1


[Site "https://www.chess.com"]